fUSD/lending_fUSD_20250911
["ID","MTS","AMOUNT","RATE_DAILY","PERIOD"]
[384873093,1757604651536,-1136.96,0.00027397,7]
[384873094,1757604651545,-1064.81,0.00027397,7]
[384873095,1757604651558,-303.50221622,0.00027397,7]
[384873096,1757604652380,183.35,0.00013215,2]
[384873097,1757604652591,183.35,0.0001391,2]
[384873098,1757604652676,183.35,0.00014606,2]
[384873099,1757604652751,183.35,0.00015301,2]
[384873100,1757604653016,183.35,0.00015997,2]
[384873101,1757604653184,183.35,0.00016692,2]
[384873102,1757604653218,-761.30778378,0.00027397,7]
[384873103,1757604653227,-385.89221622,0.00027397,7]
[384873104,1757604653255,-678.91778378,0.00027397,7]
[384873105,1757604653267,-400.0,0.00027397,7]
[384873106,1757604653276,-1016.9,0.00027397,7]
[384873107,1757604653286,-400.0,0.00027397,7]
[384873108,1757604653295,-400.0,0.00027397,7]
[384873109,1757604653305,-400.0,0.00027397,7]
[384873110,1757604653319,-1010.73,0.00027397,7]
[384873111,1757604653329,-400.0,0.00027397,7]
[384873112,1757604653342,-973.32,0.00027397,7]
[384873113,1757604653356,-2093.06,0.00027397,7]
[384873114,1757604653366,-1468.48,0.00027397,7]
[384873115,1757604653378,-438.34,0.00027397,7]
[384873116,1757604653388,-400.0,0.00027397,7]
[384873117,1757604653399,-2383.38,0.00027397,7]
[384873118,1757604653412,-400.0,0.00027397,7]
[384873119,1757604653430,-847.04,0.00027397,7]
[384873120,1757604653440,-3410.13,0.00027397,7]
[384873121,1757604653451,-400.0,0.00027397,7]
[384873122,1757604653461,-400.0,0.00027397,7]
[384873123,1757604653470,-400.0,0.00027397,7]
[384873124,1757604653480,-400.0,0.00027397,7]
[384873125,1757604653489,-400.0,0.00027397,7]
[384873126,1757604653499,-400.0,0.00027397,7]
[384873127,1757604653508,-400.0,0.00027397,7]
[384873128,1757604653518,-400.0,0.00027397,7]
[384873129,1757604653527,-400.0,0.00027397,7]
[384873130,1757604653537,-400.0,0.00027397,7]
[384873131,1757604653546,-1034.88,0.00027397,7]
[384873132,1757604653556,-400.0,0.00027397,7]
[384873133,1757604653566,-400.0,0.00027397,7]
[384873134,1757604653576,-400.0,0.00027397,7]
[384873135,1757604653585,-648.16,0.00027397,7]
[384873136,1757604653595,-400.14410532,0.00027397,7]
[384873137,1757604653604,-2866.58,0.00027397,7]
[384873138,1757604653614,-400.0,0.00027397,7]
[384873139,1757604653625,-287.4381109,0.00027397,7]
[384873140,1757604653665,183.35,0.00017388,2]
[384873141,1757604653879,-1838.2018891,0.00027397,7]
[384873142,1757604653888,-400.0,0.00027397,7]
[384873143,1757604653898,-623.7258432,0.00027397,7]
[384873144,1757604653910,-1516.1541568,0.00027397,7]
[384873145,1757604653920,-1789.11,0.00027397,7]
[384873146,1757604653930,-400.0,0.00027397,7]
[384873147,1757604653939,-400.0,0.00027397,7]
[384873148,1757604653949,-400.0,0.00027397,7]
[384873149,1757604653958,-400.0,0.00027397,7]
[384873150,1757604653968,-2225.47,0.00027397,7]
[384873151,1757604653977,-500.0,0.00027397,7]
[384873152,1757604653986,-400.0,0.00027397,7]
[384873153,1757604653995,-400.0,0.00027397,7]
[384873154,1757604654005,-2589.39,0.00027397,7]
[384873155,1757604654015,-478.9,0.00027397,7]
[384873156,1757604654025,-683.71,0.00027397,7]
[384873157,1757604654035,-2751.52,0.00027397,7]
[384873158,1757604654047,-400.0,0.00027397,7]
[384873159,1757604654057,-400.0,0.00027397,7]
[384873160,1757604654066,-400.0,0.00027397,7]
[384873161,1757604654075,-400.0,0.00027397,7]
[384873162,1757604654085,-4806.65,0.00027397,5]
[384873163,1757604654094,-400.0,0.00027397,7]
[384873164,1757604654104,-1854.94,0.00027397,7]
[384873165,1757604654113,-508.7662286,0.00027397,7]
[384873166,1757604657300,-38.2537714,0.00027397,7]
[384873167,1757604657310,-90.39361901,0.00027397,7]
[384873168,1757604657349,183.35,0.00018083,2]
[384873169,1757604657423,183.35,0.00018779,2]
[384873170,1757604657602,183.35,0.00019474,2]
[384873171,1757604658293,-183.35,0.0002017,2]
[384873172,1757604658303,-183.35,0.00020865,2]
[384873173,1757604658312,-183.35,0.00021561,2]
[384873174,1757604658322,-111.659808,0.00022256,2]
[384873175,1757604658333,-71.690192,0.00022256,2]
[384873176,1757604658343,-183.35,0.00022952,2]
[384873177,1757604658352,-183.35,0.00023647,2]
[384873178,1757604658361,-183.35,0.00024343,2]
[384873179,1757604658371,-309.60638099,0.00027397,7]
[384873180,1757604658380,-400.0,0.00027397,7]
[384873181,1757604658389,-614.88,0.00027397,7]
[384873182,1757604658399,-645.51,0.00027397,7]
[384873183,1757604658409,-2266.36,0.00027397,7]
[384873184,1757604658420,-1327.58,0.00027397,7]
[384873185,1757604658430,-400.0,0.00027397,7]
[384873186,1757604658439,-2880.61,0.00027397,7]
[384873187,1757604658448,-400.0,0.00027397,7]
[384873188,1757604658458,-198.92094494,0.00027397,7]
[384873189,1757604658468,-400.0,0.00027397,7]
[384873190,1757604658477,-400.0,0.00027397,7]
[384873191,1757604658486,-400.0,0.00027397,7]
[384873192,1757604658496,-400.0,0.00027397,7]
[384873193,1757604658505,-400.0,0.00027397,7]
[384873194,1757604658514,-400.0,0.00027397,7]
[384873195,1757604658524,-769.95,0.00027397,7]
[384873196,1757604658533,-400.0,0.00027397,7]
[384873197,1757604658542,-400.0,0.00027397,7]
[384873198,1757604658551,-400.0,0.00027397,7]
[384873199,1757604658560,-965.54,0.00027397,7]
[384873200,1757604658570,-400.0,0.00027397,7]
[384873201,1757604658580,-2600.95,0.00027397,7]
[384873202,1757604658590,-2240.91,0.00027397,7]
[384873203,1757604658599,-400.0,0.00027397,7]
[384873204,1757604658607,-402.71,0.00027397,7]
[384873205,1757604658617,-400.0,0.00027397,7]
[384873206,1757604658627,-1313.58,0.00027397,7]
[384873207,1757604658637,-400.0,0.00027397,7]
[384873208,1757604658646,-500.0,0.00027397,2]
[384873209,1757604658655,-500.0,0.00027397,2]
[384873210,1757604658664,-500.0,0.00027397,2]
[384873211,1757604658673,-500.0,0.00027397,2]
[384873212,1757604658682,-500.0,0.00027397,2]
[384873213,1757604658691,-501.87046188,0.00027397,2]
[384873214,1757604658701,-400.0,0.00027397,7]
[384873215,1757604658710,-400.0,0.00027397,7]
[384873216,1757604658719,-400.0,0.00027397,7]
[384873217,1757604658728,-409.95,0.00027397,7]
[384873218,1757604658738,-404.46561682,0.00027397,7]
[384873219,1757604658747,-767.44,0.00027397,7]
[384873220,1757604658756,-1920.9,0.00027397,7]
[384873221,1757604658765,-2109.91,0.00027397,7]
[384873222,1757604658775,-400.0,0.00027397,7]
[384873223,1757604658784,-873.37,0.00027397,7]
[384873224,1757604658793,-400.0,0.00027397,7]
[384873225,1757604658803,-400.0,0.00027397,7]
[384873226,1757604658813,-926.06,0.00027397,7]
[384873227,1757604658822,-400.0,0.00027397,7]
[384873228,1757604658831,-400.0,0.00027397,7]
[384873229,1757604658840,-400.0,0.00027397,7]
[384873230,1757604658849,-400.0,0.00027397,7]
[384873231,1757604658858,-400.0,0.00027397,7]
[384873232,1757604658867,-151.589685,0.00027397,7]
[384873233,1757604658877,-400.0,0.00027397,7]
[384873234,1757604658886,-1470.31,0.00027397,7]
[384873235,1757604658895,-300.0,0.00027397,7]
[384873236,1757604658905,-400.0,0.00027397,7]
[384873237,1757604658915,-1302.37,0.00027397,7]
[384873238,1757604659149,-2180.5,0.00027397,7]
[384873239,1757604659158,-4175.28,0.00027397,7]
[384873240,1757604659169,-1269.89,0.00027397,7]
[384873241,1757604659178,-570.53,0.00027397,7]
[384873242,1757604659187,-400.0,0.00027397,7]
[384873243,1757604659196,-400.0,0.00027397,7]
[384873244,1757604659206,-2058.03,0.00027397,7]
[384873245,1757604659215,-3261.05,0.00027397,7]
[384873246,1757604659226,-1962.15,0.00027397,7]
[384873247,1757604659235,-400.0,0.00027397,7]
[384873248,1757604659244,-1839.98,0.00027397,7]
[384873249,1757604659254,-400.0,0.00027397,7]
[384873250,1757604659264,-522.60471171,0.00027397,7]
[384873251,1757604659273,-1004.43240924,0.00027397,7]
[384873252,1757604659283,-405.92,0.00027397,7]
[384873253,1757604659293,-400.0,0.00027397,7]
[384873254,1757604659303,-400.0,0.00027397,7]
[384873255,1757604659312,-400.0,0.00027397,7]
[384873256,1757604659322,-400.0,0.00027397,7]
[384873257,1757604659331,-400.0,0.00027397,7]
[384873258,1757604659341,-400.0,0.00027397,7]
[384873259,1757604659351,-948.14,0.00027397,7]
[384873260,1757604659360,-400.0,0.00027397,7]
[384873261,1757604659369,-539.11,0.00027397,7]
[384873262,1757604659379,-400.0,0.00027397,7]
[384873263,1757604659388,-539.11,0.00027397,7]
[384873264,1757604659397,-539.11,0.00027397,7]
[384873265,1757604659407,-539.11,0.00027397,7]
[384873266,1757604659419,-459.31,0.00027397,7]
[384873267,1757604659430,-539.11,0.00027397,7]
[384873268,1757604659439,-539.11,0.00027397,7]
[384873269,1757604659448,-539.11,0.00027397,7]
[384873270,1757604659459,-400.0,0.00027397,7]
[384873271,1757604659468,-539.11,0.00027397,7]
[384873272,1757604659478,-539.11,0.00027397,7]
[384873273,1757604659488,-400.0,0.00027397,7]
[384873274,1757604659499,-539.11,0.00027397,7]
[384873275,1757604659510,-539.11,0.00027397,7]
[384873276,1757604659520,-400.0,0.00027397,7]
[384873277,1757604659530,-400.0,0.00027397,7]
[384873278,1757604659539,-539.11,0.00027397,7]
[384873279,1757604659548,-539.11,0.00027397,7]
[384873280,1757604659557,-1880.93,0.00027397,7]
[384873281,1757604659567,-539.11,0.00027397,7]
[384873282,1757604659576,-539.11,0.00027397,7]
[384873283,1757604659586,-400.0,0.00027397,7]
[384873284,1757604659595,-400.0,0.00027397,7]
[384873285,1757604659604,-1810.91,0.00027397,7]
[384873286,1757604659614,-422.37,0.00027397,7]
[384873287,1757604659623,-400.0,0.00027397,7]
[384873288,1757604659632,-400.0,0.00027397,7]
[384873289,1757604659642,-400.0,0.00027397,7]
[384873290,1757604659651,-3235.42,0.00027397,7]
[384873291,1757604659660,-400.0,0.00027397,7]
[384873292,1757604659670,-2058.78,0.00027397,7]
[384873293,1757604659680,-1993.58,0.00027397,7]
[384873294,1757604659689,-400.0,0.00027397,7]
[384873295,1757604659698,-998.15,0.00027397,7]
[384873296,1757604659708,-400.0,0.00027397,7]
[384873297,1757604659717,-400.0,0.00027397,7]
[384873298,1757604659726,-401.05585884,0.00027397,7]
[384873299,1757604659736,-2177.88,0.00027397,7]
[384873300,1757604659745,-510.41630103,0.00027397,7]
[384873301,1757604659754,-2523.96,0.00027397,7]
[384873302,1757604659763,-400.0,0.00027397,7]
[384873303,1757604659772,-400.0,0.00027397,7]
[384873304,1757604659782,-400.0,0.00027397,7]
[384873305,1757604659791,-617.73,0.00027397,7]
[384873306,1757604659800,-400.0,0.00027397,7]
[384873307,1757604659809,-400.0,0.00027397,7]
[384873308,1757604659819,-2083.12,0.00027397,7]
[384873309,1757604659828,-400.0,0.00027397,7]
[384873310,1757604659837,-400.0,0.00027397,7]
[384873311,1757604659846,-598.72,0.00027397,7]
[384873312,1757604659856,-400.0,0.00027397,7]
[384873313,1757604659865,-2518.49,0.00027397,7]
[384873314,1757604659874,-560.1,0.00027397,7]
[384873315,1757604659883,-400.0,0.00027397,7]
[384873316,1757604659893,-400.0,0.00027397,7]
[384873317,1757604659902,-1499.47,0.00027397,7]
[384873318,1757604659912,-400.0,0.00027397,7]
[384873319,1757604659921,-67.36743753,0.00027397,7]
[384873320,1757604659961,-1812.75256247,0.00027397,7]
[384873321,1757604659970,-1321.97,0.00027397,7]
[384873322,1757604659979,-1498.30795191,0.00027397,7]
[384873323,1757604659991,-1905.99204809,0.00027397,7]
[384873324,1757604660000,-1770.92,0.00027397,7]
[384873325,1757604660010,-758.3,0.00027397,7]
[384873326,1757604660019,-642.57217716,0.00027397,7]
[384873327,1757604660051,-183.35,0.00025038,2]
[384873328,1757604660061,-116.65,0.00025634,2]
[384873329,1757604661097,-381.255597,0.00025634,2]
[384873330,1757604661107,-183.35,0.00025734,2]
[384873331,1757604661117,-183.35,0.00026429,2]
[384873332,1757604661128,-560.55782284,0.00027397,7]
[384873333,1757604661139,-1816.07340937,0.00027397,7]
[384873334,1757604661162,-450.24659063,0.00027397,7]
[384873335,1757604661171,-400.0,0.00027397,7]
[384873336,1757604661181,-500.0,0.00027397,7]
[384873337,1757604661191,-2655.87,0.00027397,7]
[384873338,1757604661200,-400.0,0.00027397,7]
[384873339,1757604661210,-400.0,0.00027397,7]
[384873340,1757604661219,-550.54,0.00027397,7]
[384873341,1757604661230,-400.0,0.00027397,7]
[384873342,1757604661239,-400.0,0.00027397,7]
[384873343,1757604661248,-1147.08,0.00027397,7]
[384873344,1757604661258,-407.87355119,0.00027397,7]
[384873345,1757604661267,-410.93854855,0.00027397,7]
[384873346,1757604661277,-151.0,0.00027397,7]
[384873347,1757604661287,-2343.96,0.00027397,7]
[384873348,1757604661296,-400.0,0.00027397,7]
[384873349,1757604661305,-400.0,0.00027397,7]
[384873350,1757604661315,-1608.97,0.00027397,7]
[384873351,1757604661325,-400.0,0.00027397,7]
[384873352,1757604661334,-400.0,0.00027397,7]
[384873353,1757604661344,-400.0,0.00027397,7]
[384873354,1757604661353,-468.26,0.00027397,7]
[384873355,1757604661363,-416.48768292,0.00027397,7]
[384873356,1757604661372,-514.5,0.00027397,7]
[384873357,1757604661382,-400.0,0.00027397,7]
[384873358,1757604661391,-1522.56,0.00027397,7]
[384873359,1757604661402,-1736.95,0.00027397,7]
[384873360,1757604661414,-400.0,0.00027397,7]
[384873361,1757604661424,-413.9415306,0.00027397,7]
[384873362,1757604661433,-2334.93,0.00027397,7]
[384873363,1757604661443,-400.0,0.00027397,7]
[384873364,1757604661455,-2505.75,0.00027397,7]
[384873365,1757604661464,-522.72,0.00027397,7]
[384873366,1757604661474,-400.0,0.00027397,7]
[384873367,1757604661483,-2057.39,0.00027397,7]
[384873368,1757604661492,-400.0,0.00027397,7]
[384873369,1757604661502,-400.0,0.00027397,7]
[384873370,1757604661511,-400.0,0.00027397,7]
[384873371,1757604661521,-1456.41,0.00027397,7]
[384873372,1757604661531,-1456.41,0.00027397,7]
[384873373,1757604661540,-1456.41,0.00027397,7]
[384873374,1757604661550,-436.59,0.00027397,7]
[384873375,1757604661559,-225.78234273,0.00027397,7]
[384873376,1757604661581,-781.01636546,0.00027195,2]
[384873377,1757604661592,-503.01904747,0.00027195,2]
[384873378,1757604661848,-19407.83592653,0.00027195,2]
[384873379,1757604661860,-276.12866054,0.00027195,2]
[384873380,1757604661870,-174.21765727,0.00027397,7]
[384873381,1757604661880,-241.35772661,0.00027397,7]
[384873382,1757604661891,-421.5657108,0.00027397,7]
[384873383,1757604661902,-793.48656259,0.00027397,7]
[384873384,1757604661912,-438.33,0.00027397,7]
[384873385,1757604661922,-400.0,0.00027397,7]
[384873386,1757604661932,-405.33021299,0.00027397,7]
[384873387,1757604661941,-180.31197925,0.00027397,7]
[384873388,1757604669323,195.0,0.00027542,120]
[384873389,1757604669957,500.0,0.00027542,120]
[384873390,1757604670599,2500.0,0.00027542,120]
[384873391,1757604670674,2500.0,0.00025336,120]
[384873392,1757604670751,2500.0,0.00025931,120]
[384873393,1757604670849,2500.0,0.00025931,120]
[384873394,1757604670948,2500.0,0.00025931,120]
[384873395,1757604715137,-151.0,0.000239,2]
[384873396,1757604722239,-150.96,0.000239,2]
[384873397,1757604724068,286.36338419,0.00016438,2]
[384873398,1757604754740,-198.04,0.000239,2]
[384873399,1757604754769,-150.29080891,0.000239,2]
[384873400,1757604754824,-525.53197194,0.0002425,2]
[384873401,1757604781764,-428.53,0.00022,2]
[384873402,1757604781808,-142.95,0.00022,2]
[384873403,1757604818810,-117.35,0.00022,2]
[384873404,1757604818840,-7.67972413,0.00024047,2]
[384873405,1757604818881,-420.85027587,0.00024047,2]
[384873406,1757604835935,-166.7,0.00023515,2]
[384873407,1757604836031,-166.6,0.00023515,2]
[384873408,1757604843278,1500.0,0.0002594,120]
[384873409,1757604853426,-231.38,0.00023515,2]
[384873410,1757604853483,-780.01408275,0.00023927,2]
[384873411,1757604870548,-125.39946475,0.00023927,2]
[384873412,1757604870571,-353.0970525,0.00023927,2]
[384873413,1757604887638,-500.0,0.000241,5]
[384873414,1757604904742,-500.0,0.000241,5]
[384873415,1757604922291,-203.73,0.00024046,2]
[384873416,1757604922314,-92.54,0.00024046,2]
[384873417,1757604935327,-205.67,0.00024046,2]
[384873418,1757604935371,-485.66,0.0002425,2]
[384873419,1757604947369,-515.37529716,0.0002425,2]
[384873420,1757604980445,-151.0,0.000241,2]
[384873421,1757605054898,-3578.09186915,0.000236,5]
[384873422,1757605067825,-162.96,0.000236,5]
[384873423,1757605080068,-227.5,0.000236,5]
[384873424,1757605093122,-163.936103,0.000236,5]
[384873425,1757605104534,-151.0,0.000235,5]
[384873426,1757605116793,-163.936103,0.000235,5]
[384873427,1757605128774,-193.67801,0.000235,5]
[384873428,1757605137842,500.0,0.00013699,2]
[384873429,1757605140981,-507.80411285,0.000235,5]
[384873431,1757605152967,-487.19588715,0.000235,5]
[384873432,1757605153012,-1025.6082257,0.00023675,2]
[384873434,1757605165033,-525.6082257,0.00023675,2]
[384873435,1757605165065,-948.7835486,0.00023675,2]
[384873437,1757605177533,-300.0,0.0002385,2]
[384873438,1757605177566,-195.0,0.0002385,2]
[384873439,1757605177631,-1010.0,0.00023964,2]
[384873440,1757605181748,-250.0,0.00020275,2]
[384873442,1757605183365,-95.0,0.00020275,2]
[384873443,1757605190164,-639.15251312,0.00023964,2]
[384873445,1757605202172,-300.0,0.00023964,2]
[384873447,1757605214022,-154.1696961,0.00023964,2]
[384873449,1757605222615,152.62,0.00016438,2]
[384873450,1757605224216,-278.5177189,0.00020276,2]
[384873451,1757605226057,-89.4822811,0.00020276,2]
[384873452,1757605226078,-89.4822811,0.00023964,2]
[384873453,1757605226097,-144.73418297,0.00023964,2]
[384873455,1757605238082,-124.39365885,0.00023964,2]
[384873456,1757605238095,-38.06766786,0.00023964,2]
[384873457,1757605238105,-124.39365885,0.00023964,2]
[384873458,1757605250213,-250.01122595,0.00023608,2]
[384873459,1757605262266,-21360.96697502,0.00023608,2]
[384873461,1757605274370,-12238.05409724,0.00023608,2]
[384873462,1757605286346,-7033.19104797,0.00023608,2]
[384873463,1757605299290,-3240.89001948,0.00023608,2]
[384873465,1757605311049,-2878.104018,0.00023608,2]
[384873466,1757605322985,-4085.895982,0.000229,5]
[384873467,1757605336070,-3658.18055174,0.000226,3]
[384873470,1757605348479,-1200.0,0.000227,5]
[384873471,1757605360991,-150.96,0.000227,5]
[384873472,1757605373056,-213.16746633,0.000227,5]
[384873473,1757605385801,-200.0,0.000227,5]
[384873474,1757605397888,-525.53197194,0.000227,5]
[384873478,1757605410046,-241.46802806,0.000227,5]
[384873479,1757605410073,-241.46802806,0.00023154,2]
[384873480,1757605410093,-2.72394388,0.00023154,2]
[384873483,1757605422563,-200.0,0.000226,5]
[384873484,1757605422595,-5.80802806,0.00023154,2]
[384873485,1757605422618,-200.0,0.00023608,2]
[384873486,1757605422642,-5.80802806,0.00023608,2]
[384873487,1757605422654,-103.75924104,0.00023608,2]
[384873520,1757605615476,156.91,0.00012141,2]
[384873521,1757605615703,156.91,0.00012816,2]
[384873522,1757605615911,156.91,0.0001349,2]
[384873523,1757605616211,156.91,0.00014165,2]
[384873525,1757605616412,156.91,0.00014839,2]
[384873526,1757605616693,156.91,0.00015514,2]
[384873527,1757605616892,156.91,0.00016188,2]
[384873528,1757605617104,156.91,0.00016863,2]
[384873529,1757605617324,156.91,0.00017537,2]
[384873530,1757605617547,156.91,0.00018212,2]
[384873531,1757605617816,156.91,0.00018886,2]
[384873532,1757605618016,156.91,0.00019561,2]
[384873535,1757605651367,163.61502525,0.0002,5]
[384873539,1757605682705,-46.16432885,0.00020236,2]
[384873541,1757605716994,-110.74567115,0.00020236,2]
[384873542,1757605717027,-156.91,0.0002091,2]
[384873543,1757605717058,-156.91,0.00021585,2]
[384873544,1757605717087,-230.45762789,0.00022259,2]
[384873545,1757605717118,-156.91,0.00022259,2]
[384873546,1757605717149,-156.91,0.00022934,2]
[384873547,1757605717179,-271.54881894,0.00023608,2]
[384873548,1757605717210,-156.91,0.00023608,2]
[384873549,1757605717242,-274.11437431,0.00023618,2]
[384873550,1757605717273,-250.0,0.00023628,2]
[384873551,1757605717603,-9522.26529889,0.00024026,2]
[384873553,1757605729753,-1429.0,0.00022,2]
[384873554,1757605729814,-1309.0,0.00022,2]
[384873556,1757605743551,-500.0,0.000223,3]
[384873558,1757605767047,-735.42567115,0.000224,5]
[384873559,1757605779633,-238.7432442,0.000224,5]
[384873561,1757605792158,-500.0,0.000224,5]
[384873562,1757605804189,-293.74,0.000221,3]
[384873566,1757605816256,-163.936103,0.000221,3]
[384873568,1757605830046,-163.936103,0.00022,3]
[384873574,1757605831781,-3918.063897,0.00022,3]
[384873575,1757605831792,-250.0,0.0002225,2]
[384873576,1757605831802,-5513.0,0.000223,5]
[384873577,1757605831812,-500.0,0.00022399,2]
[384873578,1757605831822,-300.0,0.00022399,2]
[384873579,1757605831831,-300.0,0.00022399,2]
[384873580,1757605831840,-1200.0,0.00022399,2]
[384873581,1757605831850,-570.89,0.00023985,2]
[384873582,1757605831860,-9024.40470111,0.00024026,2]
[384873583,1757605831870,-2253.24,0.00024026,2]
[384873584,1757605832138,-666.0,0.00024031,3]
[384873585,1757605832171,-1000.0,0.0002406,2]
[384873586,1757605832180,-250.0,0.000241,2]
[384873587,1757605832190,-5000.0,0.00024125,2]
[384873589,1757605832200,-6652.46,0.00024125,2]
[384873591,1757605832209,-156.91,0.00024283,2]
[384873593,1757605832219,-655.68393099,0.00024304,2]
[384873595,1757605832230,-177.55334702,0.00024306,2]
[384873597,1757605832239,-540.4,0.00024309,2]
[384873598,1757605832249,-250.0,0.0002431,2]
[384873599,1757605832259,-1526.5672691,0.0002431,2]
[384873600,1757605832268,-300.0,0.0002431,2]
[384873601,1757605832278,-321.95,0.00024326,2]
[384873602,1757605832287,-420.0,0.0002433,2]
[384873603,1757605832297,-2751.0,0.00024331,2]
[384873605,1757605832307,-161.71,0.00024406,2]
[384873607,1757605832316,-1662.86,0.00024425,2]
[384873609,1757605832325,-1680.0,0.00024444,2]
[384873611,1757605832335,-152.62,0.00024475,2]
[384873613,1757605832344,-250.0,0.0002453,2]
[384873615,1757605832353,-1200.0,0.00024632,2]
[384873617,1757605832362,-150.0,0.00024633,2]
[384873619,1757605832371,-150.0,0.00024633,2]
[384873621,1757605832381,-150.00000001,0.00024633,2]
[384873623,1757605832390,-150.0,0.00024633,2]
[384873625,1757605832398,-150.0,0.00024633,2]
[384873626,1757605832407,-156.32421155,0.00024633,2]
[384873629,1757605832417,-2272.6698548,0.00024642,2]
[384873631,1757605832426,-1000.0,0.00024658,2]
[384873633,1757605832435,-2060.98916627,0.0002466,2]
[384873635,1757605832445,-177.55334701,0.00024893,2]
[384873637,1757605832454,-1211.0,0.00024893,2]
[384873638,1757605832463,-5567.92158559,0.000249,2]
[384873640,1757605832472,-678.19,0.00024952,2]
[384873642,1757605832482,-1000.0,0.00024963,2]
[384873644,1757605832491,-150.99,0.0002498,2]
[384873647,1757605832501,-2164.8,0.00025062,2]
[384873649,1757605832510,-167.42,0.00025062,2]
[384873651,1757605832519,-1115.76898439,0.00025152,2]
[384873652,1757605832528,-6385.63,0.00025174,7]
[384873655,1757605832537,-860.18,0.00025174,2]
[384873657,1757605832546,-8698.46,0.00025194,2]
[384873659,1757605832555,-160.75,0.00025238,2]
[384873661,1757605832565,-610.0,0.00025302,2]
[384873663,1757605832574,-150.0,0.00025354,7]
[384873664,1757605832583,-177.55334701,0.0002548,2]
[384873667,1757605832592,-380.04537063,0.0002548,2]
[384873669,1757605832602,-151.0,0.00025508,2]
[384873670,1757605832611,-151.0,0.00025508,2]
[384873673,1757605832620,-151.0,0.00025508,2]
[384873674,1757605832630,-600.0,0.00025508,2]
[384873676,1757605832639,-500.0,0.00025508,2]
[384873679,1757605832648,-500.0,0.00025508,2]
[384873680,1757605832657,-200.0,0.00025508,2]
[384873682,1757605832666,-500.0,0.00025508,2]
[384873684,1757605832676,-354.27961265,0.00025508,2]
[384873687,1757605832685,-306.60108493,0.00025508,2]
[384873689,1757605832694,-600.0,0.00025508,2]
[384873691,1757605832703,-600.0,0.00025508,2]
[384873693,1757605832716,-600.0,0.00025508,2]
[384873695,1757605832725,-600.0,0.00025508,2]
[384873696,1757605832737,-151.0,0.00025508,2]
[384873699,1757605832746,-151.0,0.00025508,2]
[384873700,1757605832757,-151.0,0.00025508,2]
[384873703,1757605832766,-151.0,0.00025508,2]
[384873704,1757605832775,-151.0,0.00025508,2]
[384873707,1757605832788,-151.0,0.00025508,2]
[384873709,1757605832798,-151.0,0.00025508,2]
[384873710,1757605832809,-151.0,0.00025508,2]
[384873712,1757605832818,-151.0,0.00025508,2]
[384873715,1757605832828,-151.0,0.00025508,2]
[384873717,1757605832839,-162.41442141,0.00025508,2]
[384873719,1757605832851,-200.0,0.0002551,7]
[384873721,1757605832860,-585.4320885,0.00025522,2]
[384873723,1757605832870,-36.71378003,0.00025522,2]
[384873725,1757605832882,-356.9442,0.00025522,2]
[384873727,1757605832894,-106.34201997,0.00025522,2]
[384873729,1757605832903,-500.0,0.00025522,2]